Workbook

Sheet tipy
A1: TIPY PRO ŠABLONU
A2: Je nějaký snadný způsob, jak přecházet mezi souhrnným listem trendů výdajů a podrobnostmi měsíčních výdajů?
A3: Pokud chcete rychle přejít na výdaje v určitém měsíci, klikněte na příslušný navigační odkaz nad grafem, jako je třeba navigační odkaz Leden v buňce B2. Pokud se potom budete chtít vrátit zpět do listu trendů výdajů, klikněte na navigační odkaz Souhrn v buňce D1.
A4: Pokud se budete chtít vrátit do tohoto listu s tipy, vyberte v souhrnném listu buňku N2. Ve všech měsíčních listech vyberte buňku E1.
A5: Jak přidám nový typ výdaje do listu Souhrn výdajů nebo nové měsíční výdaje?
A6: Souhrn výdajů pod grafem a podrobnosti výdajů za jednotlivé měsíce jsou tabulky Excelu. Když chcete do tabulky Excelu přidat nové řádky, udělejte jednu z těchto věcí:
A7: =ROW(A1)&". Pokud tabulka nemá řádek Celkem, začněte psát pod ní, a až stisknete Enter nebo Tabulátor, automaticky se rozšíří." -> 1. Pokud tabulka nemá řádek Celkem, začněte psát pod ní, a až stisknete Enter nebo Tabulátor, automaticky se rozšíří.
A8: =ROW(A2)&". Umístěte ukazatel do poslední buňky nad řádek Celkem, třeba součet za poslední výdaje, a stiskněte klávesu Tabulátor." -> 2. Umístěte ukazatel do poslední buňky nad řádek Celkem, třeba součet za poslední výdaje, a stiskněte klávesu Tabulátor.
A9: =ROW(A3)&". Klikněte pravým tlačítkem myši v tabulce a v místní nabídce přejděte na Vložit a potom klikněte na Řádky tabulky nad nebo Řádky tabulky pod." -> 3. Klikněte pravým tlačítkem myši v tabulce a v místní nabídce přejděte na Vložit a potom klikněte na Řádky tabulky nad nebo Řádky tabulky pod.
A10: =ROW(A4)&". V pravém dolním rohu tabulky umístěte ukazatel myši na úchyt pro změnu velikosti tabulky a tažením dolů zvyšte počet dostupných řádků tabulky." -> 4. V pravém dolním rohu tabulky umístěte ukazatel myši na úchyt pro změnu velikosti tabulky a tažením dolů zvyšte počet dostupných řádků tabulky.
A11: Zadejte výdaj na list souhrn do tabulky SouhrnVýdajů do sloupce Výdaje.
A12: Přidejte částku výdaje pro každý typ výdaje v listu měsíce, ke kterému se výdaj vztahuje.
A13: Příklad: Výdaj 1 se vztahuje k měsícům leden až červen a prosinci.
A14: =ROW(A1)&". Na listu souhrn se zadá do sloupce Výdaj v tabulce SouhrnVýdajů hodnota Výdaj 1 (jako název pro typ výdajů)." -> 1. Na listu souhrn se zadá do sloupce Výdaj v tabulce SouhrnVýdajů hodnota Výdaj 1 (jako název pro typ výdajů).
A15: =ROW(A2)&". Pro každý měsíc, kdy dojde k výdajům, zadejte požadovanou částku výdajů do listu odpovídajícího měsíce." -> 2. Pro každý měsíc, kdy dojde k výdajům, zadejte požadovanou částku výdajů do listu odpovídajícího měsíce.
A16: =ROW(A3)&". Typ výdajů z listu SouhrnVýdajů vytvoří seznam kategorií pro sloupec Kategorie v listu každého měsíce." -> 3. Typ výdajů z listu SouhrnVýdajů vytvoří seznam kategorií pro sloupec Kategorie v listu každého měsíce.
A17: =ROW(A4)&". Pomocí seznamu kategorií ve sloupci Kategorie vyberte pro zadanou částku výdajů odpovídající typ výdajů." -> 4. Pomocí seznamu kategorií ve sloupci Kategorie vyberte pro zadanou částku výdajů odpovídající typ výdajů.
A18: =ROW(A5)&". Pokud chcete pro některý měsíc přidat nové výdaje, přidejte nový řádek do tabulky SouhrnVýdajů v souhrnném listu a potom zadejte příslušné podrobnosti o výdaji na listu měsíce, kterého se týkají." -> 5. Pokud chcete pro některý měsíc přidat nové výdaje, přidejte nový řádek do tabulky SouhrnVýdajů v souhrnném listu a potom zadejte příslušné podrobnosti o výdaji na listu měsíce, kterého se týkají.

Sheet souhrn
A1: TRENDY VÝDAJŮ
B2: Leden | C2: Únor | D2: Březen | E2: Duben | F2: Květen | G2: Červen | H2: Červenec | I2: Srpen | J2: Září | K2: Říjen | L2: Listopad | M2: Prosinec | N2: Tipy
A4: Výdaje | B4: Leden | C4: Únor | D4: Březen | E4: Duben | F4: Květen | G4: Červen | H4: Červenec | I4: Srpen | J4: Září | K4: Říjen | L4: Listopad | M4: Prosinec | N4: Celkem | O4: Trend
A5: Výdaj 1 | B5: =SUMIFS(VýdLed[Částka],VýdLed[Kategorie],SouhrnVýdajů[[#This Row],[Výdaje]]) -> 330.00 | C5: =SUMIFS(VýdÚno[Částka],VýdÚno[Kategorie],SouhrnVýdajů[[#This Row],[Výdaje]]) -> 3,750.00 | D5: =SUMIFS(VýdBře[Částka],VýdBře[Kategorie],SouhrnVýdajů[[#This Row],[Výdaje]]) -> 330.00 | E5: =SUMIFS(VýdDub[Částka],VýdDub[Kategorie],SouhrnVýdajů[[#This Row],[Výdaje]]) -> 450.00 | F5: =SUMIFS(VýdKvě[Částka],VýdKvě[Kategorie],SouhrnVýdajů[[#This Row],[Výdaje]]) -> 3,750.00 | G5: =SUMIFS(VýdČvn[Částka],VýdČvn[Kategorie],SouhrnVýdajů[[#This Row],[Výdaje]]) -> 2,010.00 | H5: =SUMIFS(VýdČvc[Částka],VýdČvc[Kategorie],SouhrnVýdajů[[#This Row],[Výdaje]]) -> 0.00 | I5: =SUMIFS(VýdSrp[Částka],VýdSrp[Kategorie],SouhrnVýdajů[[#This Row],[Výdaje]]) -> 0.00 | J5: =SUMIFS(VýdZář[Částka],VýdZář[Kategorie],SouhrnVýdajů[[#This Row],[Výdaje]]) -> 0.00 | K5: =SUMIFS(VýdŘíj[Částka],VýdŘíj[Kategorie],SouhrnVýdajů[[#This Row],[Výdaje]]) -> 0.00 | L5: =SUMIFS(VýdLis[Částka],VýdLis[Kategorie],SouhrnVýdajů[[#This Row],[Výdaje]]) -> 0.00 | M5: =SUMIFS(VýdPro[Částka],VýdPro[Kategorie],SouhrnVýdajů[[#This Row],[Výdaje]]) -> 2,010.00 | N5: =SUM(SouhrnVýdajů[[#This Row],[Leden]:[Prosinec]]) -> 12,630.00
A6: Výdaj 2 | B6: =SUMIFS(VýdLed[Částka],VýdLed[Kategorie],SouhrnVýdajů[[#This Row],[Výdaje]]) -> 2,380.00 | C6: =SUMIFS(VýdÚno[Částka],VýdÚno[Kategorie],SouhrnVýdajů[[#This Row],[Výdaje]]) -> 2,380.00 | D6: =SUMIFS(VýdBře[Částka],VýdBře[Kategorie],SouhrnVýdajů[[#This Row],[Výdaje]]) -> 2,380.00 | E6: =SUMIFS(VýdDub[Částka],VýdDub[Kategorie],SouhrnVýdajů[[#This Row],[Výdaje]]) -> 1,230.00 | F6: =SUMIFS(VýdKvě[Částka],VýdKvě[Kategorie],SouhrnVýdajů[[#This Row],[Výdaje]]) -> 1,110.00 | G6: =SUMIFS(VýdČvn[Částka],VýdČvn[Kategorie],SouhrnVýdajů[[#This Row],[Výdaje]]) -> 980.00 | H6: =SUMIFS(VýdČvc[Částka],VýdČvc[Kategorie],SouhrnVýdajů[[#This Row],[Výdaje]]) -> 0.00 | I6: =SUMIFS(VýdSrp[Částka],VýdSrp[Kategorie],SouhrnVýdajů[[#This Row],[Výdaje]]) -> 0.00 | J6: =SUMIFS(VýdZář[Částka],VýdZář[Kategorie],SouhrnVýdajů[[#This Row],[Výdaje]]) -> 0.00 | K6: =SUMIFS(VýdŘíj[Částka],VýdŘíj[Kategorie],SouhrnVýdajů[[#This Row],[Výdaje]]) -> 0.00 | L6: =SUMIFS(VýdLis[Částka],VýdLis[Kategorie],SouhrnVýdajů[[#This Row],[Výdaje]]) -> 0.00 | M6: =SUMIFS(VýdPro[Částka],VýdPro[Kategorie],SouhrnVýdajů[[#This Row],[Výdaje]]) -> 4,400.00 | N6: =SUM(SouhrnVýdajů[[#This Row],[Leden]:[Prosinec]]) -> 14,860.00
A7: Výdaj 3 | B7: =SUMIFS(VýdLed[Částka],VýdLed[Kategorie],SouhrnVýdajů[[#This Row],[Výdaje]]) -> 1,100.00 | C7: =SUMIFS(VýdÚno[Částka],VýdÚno[Kategorie],SouhrnVýdajů[[#This Row],[Výdaje]]) -> 1,100.00 | D7: =SUMIFS(VýdBře[Částka],VýdBře[Kategorie],SouhrnVýdajů[[#This Row],[Výdaje]]) -> 1,100.00 | E7: =SUMIFS(VýdDub[Částka],VýdDub[Kategorie],SouhrnVýdajů[[#This Row],[Výdaje]]) -> 1,250.00 | F7: =SUMIFS(VýdKvě[Částka],VýdKvě[Kategorie],SouhrnVýdajů[[#This Row],[Výdaje]]) -> 3,330.00 | G7: =SUMIFS(VýdČvn[Částka],VýdČvn[Kategorie],SouhrnVýdajů[[#This Row],[Výdaje]]) -> 1,220.00 | H7: =SUMIFS(VýdČvc[Částka],VýdČvc[Kategorie],SouhrnVýdajů[[#This Row],[Výdaje]]) -> 0.00 | I7: =SUMIFS(VýdSrp[Částka],VýdSrp[Kategorie],SouhrnVýdajů[[#This Row],[Výdaje]]) -> 0.00 | J7: =SUMIFS(VýdZář[Částka],VýdZář[Kategorie],SouhrnVýdajů[[#This Row],[Výdaje]]) -> 0.00 | K7: =SUMIFS(VýdŘíj[Částka],VýdŘíj[Kategorie],SouhrnVýdajů[[#This Row],[Výdaje]]) -> 0.00 | L7: =SUMIFS(VýdLis[Částka],VýdLis[Kategorie],SouhrnVýdajů[[#This Row],[Výdaje]]) -> 0.00 | M7: =SUMIFS(VýdPro[Částka],VýdPro[Kategorie],SouhrnVýdajů[[#This Row],[Výdaje]]) -> 1,220.00 | N7: =SUM(SouhrnVýdajů[[#This Row],[Leden]:[Prosinec]]) -> 10,320.00
A8: Výdaj 4 | B8: =SUMIFS(VýdLed[Částka],VýdLed[Kategorie],SouhrnVýdajů[[#This Row],[Výdaje]]) -> 4,260.00 | C8: =SUMIFS(VýdÚno[Částka],VýdÚno[Kategorie],SouhrnVýdajů[[#This Row],[Výdaje]]) -> 840.00 | D8: =SUMIFS(VýdBře[Částka],VýdBře[Kategorie],SouhrnVýdajů[[#This Row],[Výdaje]]) -> 840.00 | E8: =SUMIFS(VýdDub[Částka],VýdDub[Kategorie],SouhrnVýdajů[[#This Row],[Výdaje]]) -> 4,260.00 | F8: =SUMIFS(VýdKvě[Částka],VýdKvě[Kategorie],SouhrnVýdajů[[#This Row],[Výdaje]]) -> 1,250.00 | G8: =SUMIFS(VýdČvn[Částka],VýdČvn[Kategorie],SouhrnVýdajů[[#This Row],[Výdaje]]) -> 1,870.00 | H8: =SUMIFS(VýdČvc[Částka],VýdČvc[Kategorie],SouhrnVýdajů[[#This Row],[Výdaje]]) -> 0.00 | I8: =SUMIFS(VýdSrp[Částka],VýdSrp[Kategorie],SouhrnVýdajů[[#This Row],[Výdaje]]) -> 0.00 | J8: =SUMIFS(VýdZář[Částka],VýdZář[Kategorie],SouhrnVýdajů[[#This Row],[Výdaje]]) -> 0.00 | K8: =SUMIFS(VýdŘíj[Částka],VýdŘíj[Kategorie],SouhrnVýdajů[[#This Row],[Výdaje]]) -> 0.00 | L8: =SUMIFS(VýdLis[Částka],VýdLis[Kategorie],SouhrnVýdajů[[#This Row],[Výdaje]]) -> 0.00 | M8: =SUMIFS(VýdPro[Částka],VýdPro[Kategorie],SouhrnVýdajů[[#This Row],[Výdaje]]) -> 1,870.00 | N8: =SUM(SouhrnVýdajů[[#This Row],[Leden]:[Prosinec]]) -> 15,190.00
A9: Výdaj 5 | B9: =SUMIFS(VýdLed[Částka],VýdLed[Kategorie],SouhrnVýdajů[[#This Row],[Výdaje]]) -> 540.00 | C9: =SUMIFS(VýdÚno[Částka],VýdÚno[Kategorie],SouhrnVýdajů[[#This Row],[Výdaje]]) -> 540.00 | D9: =SUMIFS(VýdBře[Částka],VýdBře[Kategorie],SouhrnVýdajů[[#This Row],[Výdaje]]) -> 1,090.00 | E9: =SUMIFS(VýdDub[Částka],VýdDub[Kategorie],SouhrnVýdajů[[#This Row],[Výdaje]]) -> 980.00 | F9: =SUMIFS(VýdKvě[Částka],VýdKvě[Kategorie],SouhrnVýdajů[[#This Row],[Výdaje]]) -> 330.00 | G9: =SUMIFS(VýdČvn[Částka],VýdČvn[Kategorie],SouhrnVýdajů[[#This Row],[Výdaje]]) -> 4,410.00 | H9: =SUMIFS(VýdČvc[Částka],VýdČvc[Kategorie],SouhrnVýdajů[[#This Row],[Výdaje]]) -> 0.00 | I9: =SUMIFS(VýdSrp[Částka],VýdSrp[Kategorie],SouhrnVýdajů[[#This Row],[Výdaje]]) -> 0.00 | J9: =SUMIFS(VýdZář[Částka],VýdZář[Kategorie],SouhrnVýdajů[[#This Row],[Výdaje]]) -> 0.00 | K9: =SUMIFS(VýdŘíj[Částka],VýdŘíj[Kategorie],SouhrnVýdajů[[#This Row],[Výdaje]]) -> 0.00 | L9: =SUMIFS(VýdLis[Částka],VýdLis[Kategorie],SouhrnVýdajů[[#This Row],[Výdaje]]) -> 0.00 | M9: =SUMIFS(VýdPro[Částka],VýdPro[Kategorie],SouhrnVýdajů[[#This Row],[Výdaje]]) -> 990.00 | N9: =SUM(SouhrnVýdajů[[#This Row],[Leden]:[Prosinec]]) -> 8,880.00
A10: Celkem | B10: =SUBTOTAL(109,SouhrnVýdajů[Leden]) -> 8,610.00 | C10: =SUBTOTAL(109,SouhrnVýdajů[Únor]) -> 8,610.00 | D10: =SUBTOTAL(109,SouhrnVýdajů[Březen]) -> 5,740.00 | E10: =SUBTOTAL(109,SouhrnVýdajů[Duben]) -> 8,170.00 | F10: =SUBTOTAL(109,SouhrnVýdajů[Květen]) -> 9,770.00 | G10: =SUBTOTAL(109,SouhrnVýdajů[Červen]) -> 10,490.00 | H10: =SUBTOTAL(109,SouhrnVýdajů[Červenec]) -> 0.00 | I10: =SUBTOTAL(109,SouhrnVýdajů[Srpen]) -> 0.00 | J10: =SUBTOTAL(109,SouhrnVýdajů[Září]) -> 0.00 | K10: =SUBTOTAL(109,SouhrnVýdajů[Říjen]) -> 0.00 | L10: =SUBTOTAL(109,SouhrnVýdajů[Listopad]) -> 0.00 | M10: =SUBTOTAL(109,SouhrnVýdajů[Prosinec]) -> 10,490.00 | N10: =SUBTOTAL(109,SouhrnVýdajů[Celkem]) -> 61,880.00

Sheet I
A1: VÝDAJE ZA LEDEN | D1: Souhrn | E1: Tipy
A2: Datum | B2: ČÍSLO NO | C2: Částka | D2: Kategorie | E2: Popis
A3: =DATE(YEAR(TODAY()),1,4) -> 2017-01-04 | B3: A-12345 | C3: 330.00 | D3: Výdaj 1 | E3: Zásoby
A4: =DATE(YEAR(TODAY()),1,5) -> 2017-01-05 | B4: A-12346 | C4: 2,380.00 | D4: Výdaj 2
C5: 3,420.00 | D5: Výdaj 4
C6: 1,100.00 | D6: Výdaj 3
C7: 840.00 | D7: Výdaj 4
C8: 540.00 | D8: Výdaj 5
A9: Celkem | C9: =SUBTOTAL(109,VýdLed[Částka]) -> 8,610.00

Sheet II
A1: VÝDAJE ZA ÚNOR | D1: Souhrn | E1: Tipy
A2: Datum | B2: ČÍSLO NO | C2: Částka | D2: Kategorie | E2: Popis
A3: =DATE(YEAR(TODAY()),2,3) -> 2017-02-03 | B3: A-12345 | C3: 330.00 | D3: Výdaj 1 | E3: Zásoby
A4: =DATE(YEAR(TODAY()),2,4) -> 2017-02-04 | B4: A-12346 | C4: 2,380.00 | D4: Výdaj 2
C5: 3,420.00 | D5: Výdaj 1
C6: 1,100.00 | D6: Výdaj 3
C7: 840.00 | D7: Výdaj 4
C8: 540.00 | D8: Výdaj 5
A9: Celkem | C9: =SUBTOTAL(109,VýdÚno[Částka]) -> 8,610.00

Sheet III
A1: VÝDAJE ZA BŘEZEN | D1: Souhrn | E1: Tipy
A2: Datum | B2: ČÍSLO NO | C2: Částka | D2: Kategorie | E2: Popis
A3: =DATE(YEAR(TODAY()),3,5) -> 2017-03-05 | B3: A-12345 | C3: 330.00 | D3: Výdaj 1 | E3: Zásoby
A4: =DATE(YEAR(TODAY()),3,6) -> 2017-03-06 | B4: A-12346 | C4: 2,380.00 | D4: Výdaj 2
C5: 550.00 | D5: Výdaj 5
C6: 1,100.00 | D6: Výdaj 3
C7: 840.00 | D7: Výdaj 4
C8: 540.00 | D8: Výdaj 5
A9: Celkem | C9: =SUBTOTAL(109,VýdBře[Částka]) -> 5,740.00

Sheet IV
A1: VÝDAJE ZA DUBEN | D1: Souhrn | E1: Tipy
A2: Datum | B2: ČÍSLO NO | C2: Částka | D2: Kategorie | E2: Popis
A3: =DATE(YEAR(TODAY()),4,4) -> 2017-04-04 | B3: A-12345 | C3: 450.00 | D3: Výdaj 1 | E3: Zásoby
A4: =DATE(YEAR(TODAY()),4,8) -> 2017-04-08 | B4: A-12346 | C4: 1,230.00 | D4: Výdaj 2
C5: 3,420.00 | D5: Výdaj 4
C6: 1,250.00 | D6: Výdaj 3
C7: 840.00 | D7: Výdaj 4
C8: 980.00 | D8: Výdaj 5
A9: Celkem | C9: =SUBTOTAL(109,VýdDub[Částka]) -> 8,170.00

Sheet V
A1: VÝDAJE ZA KVĚTEN | D1: Souhrn | E1: Tipy
A2: Datum | B2: ČÍSLO NO | C2: Částka | D2: Kategorie | E2: Popis
A3: =DATE(YEAR(TODAY()),5,3) -> 2017-05-03 | B3: A-12345 | C3: 330.00 | D3: Výdaj 1 | E3: Zásoby
A4: =DATE(YEAR(TODAY()),5,8) -> 2017-05-08 | B4: A-12346 | C4: 1,110.00 | D4: Výdaj 2
C5: 3,420.00 | D5: Výdaj 1
C6: 3,330.00 | D6: Výdaj 3
C7: 1,250.00 | D7: Výdaj 4
C8: 330.00 | D8: Výdaj 5
A9: Celkem | C9: =SUBTOTAL(109,VýdKvě[Částka]) -> 9,770.00

Sheet VI
A1: VÝDAJE ZA ČERVEN | D1: Souhrn | E1: Tipy
A2: Datum | B2: ČÍSLO NO | C2: Částka | D2: Kategorie | E2: Popis
A3: =DATE(YEAR(TODAY()),6,7) -> 2017-06-07 | B3: A-12345 | C3: 2,010.00 | D3: Výdaj 1 | E3: Zásoby
A4: =DATE(YEAR(TODAY()),6,8) -> 2017-06-08 | B4: A-12346 | C4: 980.00 | D4: Výdaj 2
C5: 3,420.00 | D5: Výdaj 5
C6: 1,220.00 | D6: Výdaj 3
C7: 1,870.00 | D7: Výdaj 4
C8: 990.00 | D8: Výdaj 5
A9: Celkem | C9: =SUBTOTAL(109,VýdČvn[Částka]) -> 10,490.00

Sheet VII
A1: VÝDAJE ZA ČERVENEC | D1: Souhrn | E1: Tipy
A2: Datum | B2: ČÍSLO NO | C2: Částka | D2: Kategorie | E2: Popis
A3: =DATE(YEAR(TODAY()),7,9) -> 2017-07-09 | B3: A-12345 | D3: Výdaj 1 | E3: Zásoby
A4: =DATE(YEAR(TODAY()),7,14) -> 2017-07-14 | B4: A-12346 | D4: Výdaj 2
D5: Výdaj 2
D6: Výdaj 3
D7: Výdaj 4
D8: Výdaj 5
A9: Celkem | C9: =SUBTOTAL(109,VýdČvc[Částka]) -> 0.00

Sheet VIII
A1: VÝDAJE ZA SRPEN | D1: Souhrn | E1: Tipy
A2: Datum | B2: ČÍSLO NO | C2: Částka | D2: Kategorie | E2: Popis
A3: =DATE(YEAR(TODAY()),8,8) -> 2017-08-08 | B3: A-12345 | D3: Výdaj 1 | E3: Zásoby
A4: =DATE(YEAR(TODAY()),8,9) -> 2017-08-09 | B4: A-12346 | D4: Výdaj 2
D5: Výdaj 2
D6: Výdaj 3
D7: Výdaj 4
D8: Výdaj 5
A9: Celkem | C9: =SUBTOTAL(109,VýdSrp[Částka]) -> 0.00

Sheet IX
A1: VÝDAJE ZA ZÁŘÍ | D1: Souhrn | E1: Tipy
A2: Datum | B2: ČÍSLO NO | C2: Částka | D2: Kategorie | E2: Popis
A3: =DATE(YEAR(TODAY()),9,9) -> 2017-09-09 | B3: A-12345 | D3: Výdaj 1 | E3: Zásoby
A4: =DATE(YEAR(TODAY()),9,15) -> 2017-09-15 | B4: A-12346 | D4: Výdaj 2
D5: Výdaj 2
D6: Výdaj 3
D7: Výdaj 4
D8: Výdaj 5
A9: Celkem | C9: =SUBTOTAL(109,VýdZář[Částka]) -> 0.00

Sheet X
A1: VÝDAJE ZA ŘÍJEN | D1: Souhrn | E1: Tipy
A2: Datum | B2: ČÍSLO NO | C2: Částka | D2: Kategorie | E2: Popis
A3: =DATE(YEAR(TODAY()),10,10) -> 2017-10-10 | B3: A-12345 | D3: Výdaj 1 | E3: Zásoby
A4: =DATE(YEAR(TODAY()),10,21) -> 2017-10-21 | B4: A-12346 | D4: Výdaj 2
D5: Výdaj 2
D6: Výdaj 3
D7: Výdaj 4
D8: Výdaj 5
A9: Celkem | C9: =SUBTOTAL(109,VýdŘíj[Částka]) -> 0.00

Sheet XI
A1: VÝDAJE ZA LISOTPAD | D1: Souhrn | E1: Tipy
A2: Datum | B2: ČÍSLO NO | C2: Částka | D2: Kategorie | E2: Popis
A3: =DATE(YEAR(TODAY()),11,14) -> 2017-11-14 | B3: A-12345 | D3: Výdaj 1 | E3: Zásoby
A4: =DATE(YEAR(TODAY()),11,21) -> 2017-11-21 | B4: A-12346 | D4: Výdaj 2
D5: Výdaj 2
D6: Výdaj 3
D7: Výdaj 4
D8: Výdaj 5
A9: Celkem | C9: =SUBTOTAL(109,VýdLis[Částka]) -> 0.00

Sheet XII
A1: VÝDAJE ZA PROSINEC | D1: Souhrn | E1: Tipy
A2: Datum | B2: ČÍSLO NO | C2: Částka | D2: Kategorie | E2: Popis
A3: =DATE(YEAR(TODAY()),12,2) -> 2017-12-02 | B3: A-12345 | C3: 2,010.00 | D3: Výdaj 1 | E3: Zásoby
A4: =DATE(YEAR(TODAY()),12,24) -> 2017-12-24 | B4: A-12346 | C4: 980.00 | D4: Výdaj 2
C5: 3,420.00 | D5: Výdaj 2
C6: 1,220.00 | D6: Výdaj 3
C7: 1,870.00 | D7: Výdaj 4
C8: 990.00 | D8: Výdaj 5
A9: Celkem | C9: =SUBTOTAL(109,VýdPro[Částka]) -> 10,490.00
